{"text_format":"3","workbook":"xlsx","n_sheets":17,"sheets":["История ","География, экономика","Физика","Химия, биология, экология","Созидательный труд ","Загадки английского","Русский язык ","Математика","Татарский ","Юный Окружающий мир","Юный История","Юный Физика, математика","Юный русский язык  ","Юный Татарский ","Юный","студенты","Учителя"],"not_rendered":{"defined_names":2},"read":"whole","date_system":"1900"}

{"sheet":"История ","index":0,"n_rows":51,"n_cols":10,"rows_kept":51}
["№","Наименование\nОУ\n","Направление конкурсной работы","Название работы","Предмет ","ФИО автора работы","Класс ","Руководитель ","работа","оплата"]
[1,"Лицей №177 г.Казань","История и краеведение, жизнь и научная деятельность К. А. Валиева","\"У домов как у людей своя судьба\"","История Татарстана","Калентьев Леонид Евгеньевич",7,"Сергеева С.В.,   Проворова О.А., "]
[2,"МБОУ школа № 181 г.Казани","краеведение ","Неизвестный  В.В.Лукницкий","история","Гараев Амирхан Радикович",7,"Загидуллина Л.А."]
[3,"МБОУ школа № 181 г.Казани","краеведение ","Арское  Педагогическое Училище в годы ВОВ","история","Григорьева Дарья Михайловна","7в","Загидуллина"]
[4,"МБОУ \"СОШ №1 г.Нурлат\"","История, краеведение","Фронтовые письма братьев Юмшаноавых","история","Гилязов Булат  Ильсурович, Галимова Эндже",10,"Гилязова Фания Фанилевна"]
[5,"МБОУ \"Лицей №2 им.ак.К.А.Валиева\nг. Мамадыш\" РТ","«История, краеведение»","Как социальные сети влияют на социализацию подростка","обществознание","Гиззатуллин Алмаз ",9,"Шишкина Юлия Александровна \n"]
[6,"МБОУ \"СОШ №4 \nг. Мамадыш\" РТ","«История, краеведение»","Дети - жертвы террора","обществознание","Зайдуллина Лиана, Богоутдинова Рушания",10.11,"Шишкина Татьяна Александровна Саматова Альфия Зуннуровна  \n"]
[7,"МБОУ \"Средняя общеобразовательная школа №27  Нижнекамского муниципального район","История и краеведение","Непобедима страна, в которой есть такие женщины","Русский язык и литература","Мингазова Лейла Расимовна","6а","Филиппова Наталья Николаевна, учитель русского языка и литературы"]
[8,"МБОУ Средняя общеобразовательная школа №88 Приволжского района города Казани"," \"История ,краеведение\"","\"Молодежные субкультуры и их влияние на развитие личности ","История, краеведение","Бобрихина  Анастасия","9а","Марданова Эльвира Шамилевна,учитель истории"]
[9,"МБОУ \"СОШ №6\" ЕМР РТ","История и краеведение, жизнь и научная деятельность К.А. Валиева","\"От купеческих особняков-до учебных корпусов: история образовательных учреждений на улицах Больша Покровская и Набережная\"","Краеведение","Афанасьева Арина Евгеньевна","11 А","Гурьева Ирина Викторовна - учитель истории и обществознания высшей квалификационной категории"]
[10,"МБОУ  «Шадчинская СОШ»","«История, краеведение»","Чал тарихлы мәктәбемә - 100 ел\n\t\t\t\t\t\t\r\n","История","Евдокимова Виктория Анатольевна",8,"Ахатова Эльмира Амировна учитель истории, педагог дополнительного образования"]
[11,"МБОУ «Школа № 167  с углубленным \nизучением отдельных предметов»","История, краеведение","«Сакральная архитектура храмов. \nКоэффициент комфортности в жизнедеятельности человека»","математика","Шаймарданова Камила Азатовна, \nСадриева Лейсан Искандеровна\n",10,"Николаев \nЭ. Н,\nФаюршина И.Г.\nучителя математики \nи информатики"]
[12,"МБОУ \"Мамаширская средняя школа\" Кукморского муниципального района РТ","История и краеведение","Солдаты тыла","краеведение","Сабирзянова Дина Саматовна   Газизова Залина Раисовна",8.7,"Насибуллина Танзиля Дамировна, учитель истории"]
[13,"МБОУ \"Школа 68\", НТОУ \"Озарение\"","краеведение","Пятивекой путь одной ветви из рода Халитовых","история Татарстана","Абдулхаков Булат Радикович",10,"Хамидуллина Ирина Викторовна, учитель, Чумакова Роза Ибрагимовна, краевед"]
[14,"МАОУ «Лицей № 78 имени А.С.Пушкина» г. Набережные Челны","История","Эволюция танков во время Великой Отечественной войны","История","Хайруллин Амир Эрикович","5 В","Мухтярова Эльмира Исхаковна, учитель истории и обществознания, кандидат философских наук"]
[15,"МАОУ «Лицей №121», г.Казани","Краеведение","Династия Апанаевых в истории народов России","Краеведение","Большаков Даниил",7,"Валиуллина Р.Х. Шигапова Л.Г."]
[16,"Лицей №2 Мамадыш",null,"Антигитлеровская коалиция  в 1941-1945гг",null,"Галиуллина Эльза",null,"Шевяхова Л В"]
{"$rows_empty":33}
[{"$f":"COUNT(A2:A50)","v":16}]

{"sheet":"География, экономика","index":1,"n_rows":52,"n_cols":1,"rows_kept":52}
{"$rows_empty":51}
[{"$f":"COUNT(A2:A51)","v":0}]

{"sheet":"Физика","index":2,"n_rows":94,"n_cols":1,"rows_kept":94}
{"$rows_empty":93}
[{"$f":"COUNT(A2:A93)","v":0}]

{"sheet":"Химия, биология, экология","index":3,"n_rows":0,"n_cols":0,"rows_kept":0}

{"sheet":"Созидательный труд ","index":4,"n_rows":96,"n_cols":10,"rows_kept":96}
["№","Наименование\nОУ\n","Направление конкурсной работы","Название работы","Предмет ","ФИО автора работы","Класс ","Руководитель ","работа","оплата"]
[1,"МБОУ \"Многопрофильный лицей им. А.М. Булатова п.г.т. Кукмор\"","Созидательный труд школьников","Создание коллекции одежды для стилизованной фотосессии","Технология ","Шакирова Камиля Илдаровна",8,"Галиева Наталья Александровна, учитель технологии высшей категории"]
[2,"МБОУ \"Башкирская гимназия №122\" ГО город Уфа Республика Башкортостан","Созидательный труд школьников","Роботы в помощь людям с ограниченными  возможностями","Наука и техника (робототехника)","Якупов Радмир Эмилевич","5а","Якупова Эльмира Фидратовна учитель МБОУ \"Башкирская гимназия №122\" ГО г.Уфа Республика Башкортостан"]
[3,"МАОУ \"Лицей № 78 им. А.С. Пушкина\" \nг. Набережные Челны","Созидательный труд школьников","Роль высшего образования как института социальной мобильности\n","Обществознание","Шакуров Раис",7,"Рустами М.В."]
[4,"МБОУ \"СОШ №20\" г.Нижнекамска",".Созидательный труд школьников",".Каждый человек должен знать свою родословную",".Созидетельный труд школьников","Пахомова Полина Юрьевна","8 класс","Гарифуллина Лейсан Анасовна"]
[5,"Муниципальное бюджетное общеобразовательное учеждение \"Средняя школа д.Починок Сутер\"","созидательный труд школьника","Воздушный костюм","технология","Закирова Руслана Исламовна",7,"Демьянова Нина Михайловна"]
[6,"МБОУ «ШадчинскаяСОШ»","Созидательный труд школьников","Мак из фомирана","технология","Салимзянова Гульшат Альбертовна",9,"Хайдарова Гульнара Раифовна учитель технологии  "]
[7,"МБОУ «Красногорская СОШ»",null,"Творческий проект «Одинокий парус»",null,"Минькина А.",null,"Медведева "]
{"$rows_empty":87}
[{"$f":"COUNT(A2:A95)","v":7}]

{"sheet":"Загадки английского","index":5,"n_rows":0,"n_cols":0,"rows_kept":0}

{"sheet":"Русский язык ","index":6,"n_rows":84,"n_cols":10,"rows_kept":84}
["№","Наименование\nОУ\n","Направление конкурсной работы","Название работы","Предмет ","ФИО автора работы","Класс ","Руководитель ","Работа","оплата"]
[1,"МБОУ \"Гимназия №2\" им. Баки Урманче НМР РТ","Русский язык и литература","Заимствования из французского языка и их роль в современном русском языке","русский язык и литература","Хафизова Алия Ниязовна","10 А","Хафизова Гульназ Райхатовна"]
[2,"МБОУ \"Омарская СОШ\"","Русский язык и литература","Имена собственные в названиях  предприятий","Русский язык","Чирухина София Александровна",10,"Cаматова Лейсан Ханифовна"]
[3,"МБОУ \"СОШ №112\" ","Русский язык и литература","\"Няша - значение слова в подростковом сленге и научной литературе\""," Русский язык","Силахина Александра Валерьевна","8Б","Ганиева Лариса Викторовна, учитель русского языка и литературы"]
[4,"МБОУ \"Среднекирменская СОШ\"","Искусство,технология,литература,русский язык\"","Образ Дома в произведениях художественной работы","Литература"," Закиров Руслан Ленарович","10 класс","Марданова А.Ш"]
[5,"МБОУ «ЗСОШ №6»\n Заинского муниципального района  РТ\n","\"Искусство, технология, русский язык и литература\"","Диалектизмы в лексике жителей Заинского района Республики Татарстан.","русский язык ","Фаттахова Элина Эдуардовна","5 \"г\" ","Руководитель Г.Ш. Садыйкова  учитель русского языка и литературы МБОУ «ЗСОШ №6» "]
[6,"МБОУ \"Верхнеякинская  основная  общеобразовательная школа\" Мамадышского муниципального района РТ\"","Русский язык и  литература","Этико-эстетическая детализация портрета в романе Б.Л.Пастернака  \"Доктор Живаго\"",null,"Бурганов Алмаз Ильнурович",9," Ахметшина Гульназ Хасбатовна учитель русского языка и литературы"]
[7,"Частное общеобразовательное учреждение Международная Школа \"Развитие\"","Литература","Как увеличить интерес подростков к чтению в школе?","Литература","Кушнарева Элеонора Викторовна",10,"Черницына Маргарита Михайловна"]
[8,"МБОУ \"Среднекирменская СОШ\" ","русский язык и литература","\"Самая нерусская буква русского алфавита, или почему Пушкин редко употреблял букву Ф\"","русский язык и литература","Марданова Нурсина Рифатовна",5,"Искандарова Гульназ Вакиповна"]
[9,"МОБУ \"Средняя общеобразовательная школа № 4\" Сургут","\"Искусство, технология, русский язык и литература\"","\"Художественные особенности сказок народов ханты и манси\"","литература","Каримова Эльвира Вильдановна",7,"Борисовская Марина Валерьевна, учитель русского языка и литературы, кпн"]
[10,"МБОУ № 20 г. Альметьевск","Русский язык и литература","Язык мультфильмов. Плюсы и минусы.","Русский язык","Лебедева Полина Александровна Гаврилова Камилла Даниловна",6,"Бортникова Надежда Анатольевна,"]
[11,"МБОУ \"Шкорла 68\", НТОУ \"Озарение\"","русский язык","Понятие страха в языковом сознании подростка","русский язык","Левина Алина Валерьевна",10,"Хамидуллина Ирина Викторовна, учитель"]
[12,"МБОУ \"Лицей №2 им.ак.К.А.Валиева г.Мамадыш\"","   Русский язык и литература","Роль письма в художественных произведениях","литература","Тюкменова Кристина ","6А","Гурьянова Резеда Фазыловна, учитель русского языка и литературы"]
[13,"\"Средняя общеобразовательная школа №27 с углубленным изучением отедльных предметов\" Нижнекамского ","Русский язык и литература","Стихи рождаются сами собой","литература ","Дубровский Михаил Александрович","9Г","Васильева Любовь Николаевна, учитель русского языка и литературы первой квалификационной категории"]
[14,"МБОУ \"Красногорская СОШ\"","Научно-исследовательская работа","Перекличка гениев (В.В. Маяковский и М.Ю. Лермонтов)","Русский язык","Закирьянова Алия",8,"Хазиева Залия Манафовна"]
[15,"МБОУ \"СОШ №37 с углубленнымизучением отдельных предметов\"","русский язык и литература","Образы природы в творчестве М.Гоголева(по рассказу \"Сад\")","литература","Руссу Валерия Максимовна",9,"Сергеева Светлана Николаевна"]
[16,"МБОУ \"СОШ №37 с углубленнымизучением отдельных предметов\"","русский язык и литература","Семантика прилагательного \"красный\" в стихотворениях о войне татарских и русских писателей","русский язык","Микрюкова Валерия Васильевна",9,"Сергеева Светлана Николаевна"]
[17,"Усалинская СОШ",null,"История Мамадышского уезда в творчестве Салтыкова - Щедрина",null,"Шарифуллин Искандер",null,"Фазылова Р Ф"]
{"$rows_empty":65}
[{"$f":"COUNT(A2:A83)","v":17}]

{"sheet":"Математика","index":7,"n_rows":84,"n_cols":1,"rows_kept":84}
{"$rows_empty":83}
[{"$f":"COUNT(A2:A83)","v":0}]

{"sheet":"Татарский ","index":8,"n_rows":87,"n_cols":10,"rows_kept":87}
["№","Наименование\nОУ\n","Направление конкурсной работы","Название работы","Предмет ","ФИО автора работы","Класс ","Руководитель ","работа","оплата"]
[1]
[2,"МБОУ \"Верхнеякинская  основная  общеобразовательная школа\" Мамадышского муниципального района РТ\"","Родной язык и литература","Ф.Яруллин,А.Алиш әкиятләрендә әхлак тәрбисенең чагылышы","Родная литература","Хасанов Инсаф Разилевич",null,"Фахрутдинова Лилия Мавлеевна,  учитель татарского языка и литературы"]
[3,"МБОУ СОШ №2 РТ г.Агрыз","татарский язык и литература","Костюмы татарского народа","родной язык","Ахметгаянова Аделина Азатовна","7А","Ибрагимова Венера Аграфовна, учитель татарского языка и литературы"]
[4,"МБОУ «Нурминская средняя общеобразова-тельная школа»",null,"Техника художественного перевода  на примере рассказа Амирхана Еники «Бала» («Дитя»)","Татарский язык,","Ризванова Залия Назиховна Лапшина Алия Зимфировна ",11,"Ибрагимова Рида Харисовна Асанова Римма Харисовна"]
[5,"МБОУ \"Мари Булярская ООШ\" Муслюмовского муниципального района РТ","«Татарский язык и литература»","\"Эльмира Шәрифҗанова иҗатында әхлак тәрбиясе\"","татарский язык и  литература","Шайдуллина Айсылу",5,"Гильфанова Лилия Мирзарифовна"]
[6,"МБОУ \"Нижнесуньская СОШ\"","Татарский язык и литература","Татар реклама-\nсында\nстилистик чаралар","Татарский язык и литература","Акбаров Алмаз Нурлыханович",7,"Назмиева Эндже Миннехановна"]
[7,"МБОУ \" Лицей №2 им. ак К.Валиева г.Мамадыш\"","Татарский язык и литература","Г. Тукайның “Теләнче” шигыренең язылу тарихы һәм Венера Думаева-Вәлиева тәрҗемәләре.","Татарский язык и литература","Лукманова Лиана Карпова Юлия Петровна",8,"Фазлиева Л Сафина ГГ"]
[8,"МБОУ \"Шемяковская ООШ\"","Татарский язык и литература","Халкыбызның мәдәни мирасын халыкка кайтаручы","Татарский язык и литература","Ситдикова Дина Фанисовна",8,"Абдуллина Минзия Шамсумухаметовна учитель татарского языка и литературы"]
[9,"МАОУ «Лицей №121», МБУДО «Центр одаренных детей» г.Казани","Татарская литература","Әдәбиятта Җир- ана һәм туган ил  образларының тәңгәллеге         ","Татарская литература","Хайрутдинова Айгуль Рамилевна",11,"Валиуллина Р.Х. Шигапова Л.Г."]
[10,"МАОУ «Лицей №121», МБУДО «Центр одаренных детей» г.Казани","Татарская литература","Татар  драматургиясендә мифологик мотивлар чагылышы","Татарская литература","Тимерханова Иделя Айнуровна",10,"Валиуллина Р.Х. Шигапова Л.Г."]
[11,"Шадчинская СОШ",null,"Т. Миннулин водевильлэрендегэ суретлеу чаралары",null,"Николаева Юля",null,"Садыкова Л П"]
{"$rows_empty":74}
[{"$f":"COUNT(A2:A86)","v":11}]

{"sheet":"Юный Окружающий мир","index":9,"n_rows":0,"n_cols":0,"rows_kept":0}

{"sheet":"Юный История","index":10,"n_rows":82,"n_cols":10,"rows_kept":82}
["№","Наименование\nОУ\n","Направление конкурсной работы","Название работы","Предмет ","ФИО автора работы","Класс ","Руководитель ","работа","оплата"]
[1," «Кукморская средняя школа №3» Кукморского муниципального района Республики Татарстан","«Юный исследователь»","«История нашей малой Родины»",null,"Аполинариев К.Д. Габдуллина Д.Ф.","3 класс","Латипова Лилия Фаизовна, Габбасова Расима Расимовна"]
[2," Набережные Челны \"Гимназия № 76\"","Юный исследователь Секция № 2 \"История, краеведение\"","Проект-презентация \"Чтобы помнили…\"","История","Коваленко Иван Константинович","3 В","Белалова Марина Викторовна, учитель начальных классов"]
[3,"МБОУ \"Гимназия №3\" Чистопольского муниципального района РТ","Юный исследователь Секция №2 \"История, краеведение\"","Роман Лизалин Человек с большой буквы.","история","Тесакова Софья Олеговна",4,"Горелова Наталья Петровна, учитель начальных классов высшей квалификационной категории"]
[4,"МБОУ «СОШ № 27» \nг. Нижнекамск РТ\n","История, краеведение","Дело жизни моей бабушки Руфины Сунгатуллиной","Краеведение","Смирнова Айне Дмитриевна",4,"Хасанова Гульназ Загитовна, \nучитель начальных классов\nвысшей категории\n"]
[5," \"Средняя общеобразовательная школа № 7\" г. Альметьевска, РТ","История, краеведение","Мой прадедушка - герой!","начальные классы","Шаронова Анастасия Александровна",4,"Тимофеева Наталья Алеесеевна, учитель начальных классов"]
[6,"МБОУ \"Таканышская СОШ\"","Юный исследователь. Секция №2 \"История, краеведение\"","“Авылымның  бер шәхесе – “Артиллерист  - Нәзирҗан”\n(Җирле-төбәк, музей материалларына нигезләнеп)\n","Внеурочная деятельность","Гараев Ранис Данисович","1 класс"," Ибрагимова Софья Николаевна"]
[7,"МАОУ гимназия №76 г. Набережные Челны","юный исследователь","Герои Победы, наши деды и прадеды\n",null,"Мухаметшина Камилла Ильдаровна ","ученица 4 А класса"]
[8,"МБОУ  «Зюринская СОШ»","История и краеведение","Вахит базары тарихы","история","Кузнецова Кристина Владимировна",4,"Шарифуллина Салима Махмутовна, учитель первой категории"]
[9,"МБОУ \"Нижнеошминская СОШ\" Мамадышского района РТ","Юный исследователь«История, краеведение»","«Гаиләмдә чәк-чәк пешерү – буыннардан килгән мирас»","начальные классы","Миннахметова Резеда Ильсуровна",2,"Миннахметова Аниса Хакимовна"]
[10,"МБОУ \"Усалинская СОШ\" Мамадышского района РТ","\"Юный исследователь\"","\"Авылым атамаларында- туган ягым тарихы.","История, краеведение.","Мустафина Диля Ильгизовна.","2 А класс","Файзрахманова Эльмира Дияттиновна,"]
[11,"МБОУ \"Гимназия №2 им.Мулланура Вахитова\" г.Набережные Челны","История, краеведение","В честь кого назвали улицу, на которой я живу","История","Равзутдинова Зарина Тагировна","4 В","Гинниятуллина Ильфира Сабировна, учитель начальных классов"]
[12,"Верхнеошминская ООШ","\"Юный исследователь\"","Буыннар чылбыры озелмесен",null,"Исмагилов Карим",4,"Исмагилова Р К"]
[13,"МБОУ «Лицей №2 им.ак. К.А. Валиева  г. Мамадыш»","История и краеведение","Газете «Нократ» 100 лет","Начальные классы","Каюмова Камилла","1 В"]
{"$rows_empty":67}
[{"$f":"COUNT(A2:A81)","v":13}]

{"sheet":"Юный Физика, математика","index":11,"n_rows":100,"n_cols":10,"rows_kept":100}
["№","Наименование\nОУ\n","Направление конкурсной работы","Название работы","Предмет ","ФИО автора работы","Класс ","Руководитель ","работа","оплата"]
[1,"МБОУ \"Никифоровская ООШ\"","Юный исследователь","Кубик Рубика не просто развлечение",null,"Степанов Дмитрий Сергеевич"]
[2,"ГАОУ \"Школа Иннополис\" Верхнеуслонский район РТ","Юный исследователь","Загадки математики","математика","Лабутова Вероника Николаевна",4,"Нуреева Регина Рашитовна, учитель начальных классов"]
[3,"МАОУ \"Гимназия № 76\" г. Набережные Челны","Юный исследователь","Ветроэнергетика - возобновляемые источники энергетики","Физика","Халимуллин Камиль Фаизович","3-а","Рабаданова Гульнара Магомедовна"]
[4,"МАОУ \"Гимназия № 76\" г. Набережные Челны","Юный исследователь","Солнцемобиль. Миф или реальность?","Физика","Гареев Амир Айратович","3-а","Рабаданова Гульнара Магомедовна"]
[5,"Муниципальноое общеобразовательное учреждение \"Заинская средняя общеобразовательная школа №6\"","Юный исследователь","Почему \"плачут\" окна?","Физика","Абдурахманов Рамиль",3,"Храмкова Ольга Александровна"]
[6,"МБОУ «Гимназия №2» имени Баки Урманче","Юный исследователь","«Кодирование информации о товаре с помощью штрихового кодирования»","информатика","Газетдинов Гадель Робертович",4,"Мухаметьянова Чулпан Маликовна, учитель начальных классов, Газетдинова Алсу Расимовна, учитель информатики"]
[7,"МБОУ «СОШ № 27» \nг. Нижнекамск РТ\n","Физика, математика,\nхимия,\nинформатика.\n","   Симметрия в \nокружающем мире\n","математика","Горшунова Арина Алексеевна",4,"Хасанова Гульназ Загитовна, \nучитель начальных классов\nвысшей категории\n"]
[8,"Частное общеобразовательное учреждение Международная Школа \"Развитие\"","Юный исследователь (Физика, математика, химия, информатика)","Математика в искусстве","Математика","Кушнарев Григорий Викторович",4,"Соловьев Сергей Александрович, учитель физики и математики"]
[9,"МАОУ «Гимназия № 76» г.Набережные Челны","юный исследователь","Паровой двигатель на запасном пути. Так ли это?",null,"Юнусов Булат Ильдарович","2А","Вильданова Альфия Ильгизовна"]
[10,"МАОУ \"Гимназия № 76\", г. Набережные Челны","Юный исследователь. Секция №3  «Физика, математика, химия, информатика»","Как появляется тень?",null,"Коновалов Ярослав Алексеевич","1Г","Климина Маргарита Юрьевна"]
[11,"МАОУ \"Гимназия № 76\", г. Набережные Челны","Юный исследователь. Секция №3  «Физика, математика, химия, информатика»","Можно ли искусственно создать кристаллы?",null,"Земсков Севастьян Давыдович","1Г","Климина Маргарита Юрьевна"]
[12,"МБОУ \"Лицей №2 им. ак.К.Валиева г. Мамадыш","Юный исследователь. Секция №3  «Физика, математика, химия, информатика»"," О секрете происхождения арабских цифр ",null,"Расулова Амина","2Г","Нугуманова Альбина Ильдусовна"]
[13,"МАОУ гимназия №76 г. Набережные Челны",null,"Компьютер - мой друг или враг?\n",null,"Мухаметшина Самира Ильдаровна ","ученица 3 Б класса"]
[14,"МБОУ \"Гимназия №2\" имени Баки Урманче Нижнекамского муниципального района РТ","Юный исследователь","Химический источник электрического тока","Химия               или           окружающий мир","Харитонов Никита Александрович","4 В","Мухаметьянова Чулпан Маликовна, учитель начальных классов"]
[15,"МАОУ \"Гимназия № 76\"","Юный исследователь","Почему скользят ботинки",null,"Мелехин Ратмир Евгеньевич","1 Г","Климина Маргарита Юрьевна, учитель начальных классов"]
{"$rows_empty":83}
[{"$f":"COUNT(A2:A99)","v":15}]

{"sheet":"Юный русский язык  ","index":12,"n_rows":97,"n_cols":10,"rows_kept":97}
["№","Наименование\nОУ\n","Направление конкурсной работы","Название работы","Предмет ","ФИО автора работы","Класс ","Руководитель ","работа","оплата"]
[1,"МБОУ \"Среднекирменская СОШ\" Мамадышского муниципального района РТ","Юный исследователь","\"Ай да русский самовар, или энциклопедия одного слова\"","русский язык","Искандарова Фируза Фирдиазовна",4,"Искандарова Гульназ Вакиповна"]
[2,"МБОУ «Гимназия №26» г.Набережные Челны","Русский язык и литература","Использование фразеологизмов в речи младших школьников","Русский язык","Селиванов Владислав",3,"Батенкова Наталья Геннадьевна"]
[3,"МБОУ \"Лицей №2 им. ак.К.Валиева г. Мамадыш","Юный исследователь Русский язык","Буквы, исчезнувшие из алфавита","русский язык","Расулова Мадина","2Г","Нугуманова Альбина Ильдусовна"]
[4,"МБОУ \"Красногорская СОШ\"","Научно-исследовательская работа","Молодежный жаргон в речи современных школьников","Русский язык","Балашова Анжелика Петровна",4,"Балякина Анна Алексеевна"]
[5,"МБОУ «Лицей №2 им.ак. К.А. Валиева г. Мамадыш».","Секция №4 «Искусство, технология, русский язык и литература»","Изготовление пластилина в домашних условиях","технология","Гайнанов Амир Айнурович",4,"Галимуллина Асия Мансуровна "]
[6,"МБОУ \"СОШ № 27\" г. Нижнекамск","Искусство, технология, русский язык и литература","Оригами- проект будущего","технология","Зиннатуллин Амиль Эдуардович","1А","Хисматуллина Альфия Габдулхаковна"]
[7,"МБОУ \"Гимназия №2\" имени Баки Урманче","Юный исследователь \"Искусство,технология,русский язык и литература\"","\"Скотч- на все случаи жизни\"","технология","Шалфеева Виктория Вадимовна,  Низамутдинов Амин эдуардович",4,"Гареева Ляйсан Рафисовна, учитель начальных классов"]
[8,"МАОУ  \"СОШ №7\"","Юный исследователь","\"Забытая мелодия флейты\"","Юный исследователь Секция №4 \"Искусство, технология, русский язык и литература\"","Москалев Георгий Олегович","2 \"В\"","Тазетдинова Зульфия Эльврусовна"]
[9,"МАОУ \"Гимназия №76\" г. Набережные Челны","Юный исследователь","Узелковый батик. Шибори. Тай дай","Искусство","Суфиярова Алина Салаватовна",4,"Бегунова Любовь Евгеньевна,  Рыбушкина Лидия Борисовна"]
[10,"МБОУ \"СОШ №19\" НМР РТ","Юный исследователь Секция №4 «Искусство, технология, русский язык  и литература»","Чудесная гуашь","Художественное искусство","Давытева Ралина Булатовна","2 в","Ташмурзина Алена Владимировна, учитель начальных классов"]
[11,"МБОУ \"СОШ № 27 \" НМР РТ","«Искусство, технология, русский язык  и литература»"," «Возрождение  семейных традиций»","Юный исследователь (для учащихся начальных классов)","Деревянко Камила Александровна","4 Б","Хабибуллина Лилия Фанилевна, учитель начальных классов высшей квалификационной категории"]
[12,"Муниципальноое общеобразовательное учреждение \"Заинская средняя общеобразовательная школа №6\"","Юный исследователь","Экологический смысл в русских народных сказках","окружающий мир, здоровье, экология","Догадин Андрей Владимирович",4,"Догадина Ирина Анатолиевна, учитель начальных классов высшей квалификационной категории"]
[13,"МБОУ КСШ №3","Юный исследователь","Роль белого цвета в культуре татарского народа","ИЗО, татарская литература","Хазиев Карим Рашадович  Сабиров Карим Булатович","2г","Гордеева Лариса Александровна Сабирова Залия Рафаилевна"]
{"$rows_empty":82}
[{"$f":"COUNT(A2:A96)","v":13}]

{"sheet":"Юный Татарский ","index":13,"n_rows":0,"n_cols":0,"rows_kept":0}

{"sheet":"Юный","index":14,"n_rows":81,"n_cols":1,"rows_kept":81}
{"$rows_empty":80}
[{"$f":"COUNT(A2:A80)","v":0}]

{"sheet":"студенты","index":15,"n_rows":99,"n_cols":10,"rows_kept":99}
["№","Наименование\nОУ\n","Направление конкурсной работы","Название работы","Предмет ","ФИО автора работы","Класс ","Руководитель ","работа","оплата"]
{"$rows_empty":97}
[{"$f":"COUNT(A2:A98)","v":0}]

{"sheet":"Учителя","index":16,"n_rows":188,"n_cols":4,"rows_kept":188}
{"$rows_empty":170}
[{"$f":"COUNT(A2:A160)","v":0},"учителя"]
[null,"всего ученики ",{"$f":"'История '!A51+'География, экономика'!A52+Физика!A94+'Химия, биология, экология'!A105+'Созидательный труд '!A96+'Загадки английского'!A93+'Русский язык '!A84+Математика!A84+'Татарский '!A87+'Юный Окружающий мир'!A97+'Юный История'!A82+'Юный Физика, математика'!A100+'Юный русский язык  '!A97+'Юный Татарский '!A100+Юный!A81","v":92},{"$f":"SUM(C173:C188)","v":92}]
[null,"юный не понятный",{"$f":"Юный!A81","v":0}]
[null,"юный татарский",{"$f":"'Юный Татарский '!A100","v":0}]
[null,"Юный русский язык ",{"$f":"'Юный русский язык  '!A97","v":13}]
[null,"Юный Физика, математика'",{"$f":"'Юный Физика, математика'!A100","v":15}]
[null,"Юный История",{"$f":"'Юный История'!A82","v":13}]
[null,"Юный Окружающий мир",{"$f":"'Юный Окружающий мир'!A97","v":0}]
[null,"Татарский ",{"$f":"'Татарский '!A87","v":11}]
[null,"Математика",{"$f":"Математика!A84","v":0}]
[null,"Русский язык '",{"$f":"'Русский язык '!A84","v":17}]
[null,"Загадки английского",{"$f":"'Загадки английского'!A93","v":0}]
[null,"Созидательный труд",{"$f":"'Созидательный труд '!A96","v":7}]
[null,"Химия, биология, экология",{"$f":"'Химия, биология, экология'!A105","v":0}]
[null,"Физика",{"$f":"Физика!A94","v":0}]
[null,"География, экономика",{"$f":"'География, экономика'!A52","v":0}]
[null,"История",{"$f":"'История '!A51","v":16}]
[null,"Студенты",{"$f":"студенты!A99","v":0}]